bitfinex/quotes_BTCUSD_20260311
["timestamp","ask_amount","ask_price","bid_price","bid_amount"]
[1773244706841,0.20976841,70301.0,70282.0,0.00148]
[1773244707036,0.20914333,70301.0,70282.0,0.00085492]
[1773244707248,0.20851864,70301.0,70282.0,0.00085492]
[1773244707446,0.20851864,70301.0,70273.0,0.07075306]
[1773244707674,0.20789432,70301.0,70274.0,0.00148]
[1773244707893,0.20727042,70301.0,70270.0,0.07115354]
[1773244708112,0.20977051,70299.0,70273.0,0.07115043]
[1773244708325,0.20977051,70299.0,70264.0,0.00148]
[1773244708517,0.20914772,70299.0,70264.0,0.00148]
[1773244708720,0.20914772,70299.0,70257.0,0.00148]
[1773244708957,0.20977183,70289.0,70254.0,0.21196643]
[1773244709127,0.20977183,70289.0,70249.0,0.00168]
[1773244709128,0.21039389,70279.0,70249.0,0.0002]
[1773244709352,0.21039389,70277.0,70251.0,5.856e-05]
[1773244709538,0.20977296,70277.0,70248.0,0.07115564]
[1773244709741,0.20915254,70277.0,70248.0,0.07263564]
[1773244709918,0.07114905,70275.0,70248.0,0.07201522]
[1773244710105,0.20977403,70274.0,70248.0,0.07201522]
[1773244710306,0.20977403,70274.0,70248.0,0.07139536]
[1773244710504,0.20915467,70274.0,70248.0,0.00148]
[1773244710822,0.2085358,70274.0,70248.0,0.07203746]
[1773244711023,0.20791743,70274.0,70248.0,0.07203746]
[1773244711203,0.20791743,70274.0,70248.0,0.07141909]
[1773244711411,0.20729956,70274.0,70248.0,0.07141909]
[1773244711607,0.20729956,70274.0,70249.0,0.00148]
[1773244711947,0.20668219,70274.0,70249.0,0.00086263]
[1773244712093,0.21039389,70272.0,70249.0,0.07142104]
[1773244712302,0.20977749,70272.0,70249.0,0.07142104]
[1773244712502,0.20977749,70272.0,70250.0,0.00148]
[1773244712744,0.20916157,70272.0,70250.0,0.00086408]
[1773244712945,0.20854611,70272.0,70250.0,0.00086408]
[1773244713156,0.20854611,70272.0,70250.0,0.00024862]
[1773244713456,0.2079311,70272.0,70250.0,0.00148]
[1773244713761,0.21039389,70281.0,70251.0,0.13750687]
[1773244713990,0.21039389,70287.0,70251.0,0.13689281]
[1773244714258,0.2823579,70287.0,70253.0,0.1367919]
[1773244714410,0.2823579,70287.0,70253.0,0.13617853]
[1773244714607,0.28174511,70287.0,70253.0,0.13556574]
[1773244714828,0.28113291,70287.0,70253.0,0.13556574]
[1773244715034,0.28113291,70287.0,70253.0,0.13495354]
[1773244715256,0.00144,70286.0,70253.0,0.13434194]
[1773244715510,0.20978291,70286.0,70253.0,0.13434194]
[1773244715718,0.20978291,70286.0,70253.0,0.13373096]
[1773244715719,0.21122291,70286.0,70253.0,0.13373096]
[1773244715920,0.00144,70290.0,70253.0,0.13312058]
[1773244716203,0.07052512,70289.0,70255.0,0.13598258]
[1773244716362,0.28091901,70289.0,70255.0,0.13537282]
[1773244716551,0.28030984,70289.0,70255.0,0.13537282]
[1773244716752,0.28030984,70289.0,70255.0,0.13476365]
[1773244716963,0.27970125,70289.0,70255.0,0.13415506]
[1773244717182,0.0719649,70291.0,70257.0,0.13404884]
[1773244717363,0.0719649,70291.0,70259.0,0.13404884]
[1773244717561,0.07135748,70291.0,70261.0,0.13344142]
[1773244717859,0.07079059,70291.0,70261.0,0.13344142]
[1773244718080,0.07079059,70291.0,70262.0,0.07116222]
[1773244718282,0.20978748,70290.0,70263.0,0.13212794]
[1773244718563,0.20978795,70290.0,70263.0,0.13064794]
[1773244718890,0.20918254,70290.0,70264.0,0.00148]
[1773244719101,0.20918254,70290.0,70264.0,0.00087459]
[1773244719292,0.20857764,70290.0,70264.0,0.19924099]
[1773244719497,0.20857764,70290.0,70265.0,0.00148]
[1773244719842,0.21039389,70288.0,70265.0,0.19924203]
[1773244719968,0.20979,70288.0,70266.0,0.00148]
[1773244720172,0.07113691,70287.0,70267.0,0.07115715]
[1773244720386,0.19755703,70286.0,70267.0,0.07055375]
[1773244720598,0.1969541,70286.0,70267.0,0.06995082]
[1773244720795,0.1969541,70286.0,70268.0,0.00148]
[1773244720991,0.19635163,70286.0,70268.0,0.00087753]
[1773244721213,0.1957496,70286.0,70269.0,0.00148]
[1773244721462,1.08208263,70288.0,70269.0,0.21557616]
[1773244721663,1.08148101,70288.0,70269.0,0.21497454]
[1773244721864,1.08087981,70288.0,70269.0,0.21437334]
[1773244722065,1.08027904,70288.0,70271.0,0.21469819]
[1773244722272,0.07113691,70287.0,70270.0,0.07263321]
[1773244722412,0.19695662,70286.0,70270.0,0.07263407]
[1773244722748,0.19635654,70286.0,70270.0,0.07203366]
[1773244722995,0.19635654,70286.0,70270.0,0.07143358]
[1773244723159,0.19575679,70286.0,70271.0,0.00148]
[1773244723367,0.19515738,70286.0,70271.0,0.00088059]
[1773244723564,0.1945583,70286.0,70271.0,0.00088059]
[1773244723765,0.1945583,70286.0,70271.0,0.00028151]
[1773244723922,0.19395955,70286.0,70271.0,0.00028151]
[1773244724120,0.19395955,70286.0,70272.0,0.00148]
[1773244724386,0.19336115,70286.0,70273.0,0.07055268]
[1773244724544,1.07968097,70285.0,70273.0,0.07055268]
[1773244724749,1.07968097,70285.0,70273.0,0.06995461]
[1773244724948,1.07908323,70285.0,70273.0,0.06995461]
[1773244725153,1.07908323,70285.0,70272.0,0.07203419]
[1773244725353,1.07848584,70285.0,70272.0,0.0714368]
[1773244725555,1.07788879,70285.0,70272.0,0.0714368]
[1773244725763,0.36606667,70285.0,70273.0,0.21410114]
[1773244725988,0.36547004,70285.0,70273.0,0.21350451]
[1773244726160,0.33301686,70285.0,70273.0,0.21290832]
[1773244726496,0.33242109,70285.0,70275.0,0.21410242]
[1773244726643,0.00014226,70296.0,70275.0,0.21410242]
[1773244726851,0.00014226,70296.0,70275.0,0.213507]
[1773244727052,0.0706723,70299.0,70275.0,0.21291196]
[1773244727251,0.07053011,70300.0,70275.0,0.21291196]
[1773244727472,0.07201011,70300.0,70275.0,0.21231739]
[1773244727800,0.26897307,70300.0,70275.0,0.21172332]
[1773244727965,0.2683795,70300.0,70275.0,0.21112975]
[1773244728155,0.0702294,70300.0,70275.0,0.21053668]
[1773244728357,0.19755703,70297.0,70276.0,0.07114804]
[1773244728558,0.1969644,70297.0,70276.0,0.07055541]
[1773244728776,0.19637217,70297.0,70276.0,0.07055541]
[1773244729100,0.19578036,70297.0,70276.0,0.06996318]
[1773244729301,0.19578036,70297.0,70276.0,0.06937137]
[1773244729489,0.19518894,70297.0,70275.0,0.00148]
[1773244729684,0.19459803,70297.0,70275.0,0.00148]
[1773244730007,0.19400757,70297.0,70275.0,0.00148]
[1773244730324,0.19400757,70297.0,70276.0,0.0721479]
[1773244730325,0.0711278,70296.0,70276.0,0.0721479]
[1773244730609,0.20001203,70295.0,70276.0,0.00040998]
[1773244730788,0.20001203,70293.0,70275.0,0.00129994]
[1773244731110,0.19942285,70293.0,70265.0,0.07115897]
[1773244731286,0.19883412,70293.0,70271.0,0.00148]
[1773244731488,0.07053778,70296.0,70271.0,0.00148]
[1773244731489,0.00148,70292.0,70271.0,0.00148]
[1773244731698,0.19942378,70291.0,70271.0,0.00089175]
[1773244731915,0.19942378,70291.0,70271.0,0.00148]
[1773244731916,0.19883596,70291.0,70271.0,0.00148]
[1773244732215,0.1982486,70291.0,70270.0,0.00148]
[1773244732414,0.07113387,70290.0,70270.0,0.00148]
[1773244732596,0.19942519,70289.0,70270.0,0.00148]
[1773244732797,0.19942519,70289.0,70270.0,0.00089316]
[1773244733014,0.19883876,70289.0,70270.0,0.07115407]
[1773244733169,0.19825272,70289.0,70270.0,0.07263407]
[1773244733365,0.19825272,70289.0,70270.0,0.07204803]
[1773244733571,0.20001203,70287.0,70270.0,0.00089434]
[1773244733813,0.19942675,70287.0,70270.0,0.00089434]
[1773244734015,0.19942675,70287.0,70270.0,0.00030906]
[1773244734219,0.19884184,70287.0,70270.0,0.07146312]
[1773244734442,0.20032184,70287.0,70272.0,0.07115209]
[1773244734610,0.072132,70292.0,70273.0,0.21691687]
[1773244734837,0.00041574,70292.0,70273.0,0.21633261]
[1773244735008,0.07113076,70294.0,70273.0,0.21633261]
[1773244735206,0.20001203,70294.0,70273.0,0.21574876]
[1773244735428,0.1994286,70294.0,70273.0,0.21574876]
[1773244735635,0.1994286,70294.0,70273.0,0.21516533]
[1773244735865,0.19884559,70294.0,70273.0,0.21516533]
[1773244736182,0.19884559,70294.0,70274.0,0.00148]
[1773244736320,0.001,70291.0,70274.0,0.00089742]
[1773244736513,0.19826301,70294.0,70275.0,0.07114905]
[1773244736514,0.20001203,70293.0,70275.0,0.07114905]
[1773244736821,0.19943022,70293.0,70276.0,0.00148]
[1773244737063,0.19943022,70293.0,70276.0,0.00089819]
[1773244737217,0.19884878,70293.0,70277.0,0.00148]
[1773244737423,0.07112864,70296.0,70278.0,0.21750142]
[1773244737642,0.00089891,70293.0,70278.0,0.21750142]
[1773244737841,0.00089891,70293.0,70278.0,0.21692033]
[1773244738096,0.19943129,70292.0,70277.0,0.00089856]
[1773244739409,0.19885298,70291.0,70268.0,0.00090067]
[1773244739627,0.19827409,70291.0,70268.0,0.21840209]
[1773244739770,0.19827409,70291.0,70268.0,0.2178232]
[1773244739969,0.19769564,70291.0,70273.0,0.00062155]
[1773244740219,0.19711758,70291.0,70268.0,0.2178232]
[1773244740524,0.19711758,70291.0,70269.0,0.00148]
[1773244740721,0.20001203,70289.0,70270.0,0.07115411]
[1773244740926,0.19943484,70289.0,70270.0,0.07115411]
[1773244741072,0.19943484,70289.0,70270.0,0.07057692]
[1773244741276,0.19885806,70289.0,70270.0,0.07057692]
[1773244741525,0.19885806,70289.0,70270.0,0.07000014]
[1773244741725,0.19828169,70289.0,70270.0,0.07000014]
[1773244741952,0.19828169,70289.0,70270.0,0.06942377]
[1773244742305,0.19828169,70289.0,70271.0,0.21750142]
[1773244742716,0.07112881,70295.0,70273.0,0.21750142]
[1773244742931,0.00148,70294.0,70273.0,0.21750142]
[1773244743136,0.00090403,70294.0,70273.0,0.21750142]
[1773244743319,0.20001203,70293.0,70273.0,0.21692545]
[1773244743526,0.19943646,70293.0,70273.0,0.21634988]
[1773244743731,0.20034128,70293.0,70273.0,0.21634988]
[1773244744033,0.19976648,70293.0,70273.0,0.2157747]
[1773244744276,0.19976648,70293.0,70272.0,0.07057729]
[1773244744585,0.19919207,70293.0,70273.0,0.001]
[1773244744786,0.20001203,70291.0,70274.0,0.07115006]
[1773244744988,0.20001203,70291.0,70275.0,0.00090599]
[1773244745187,0.19943835,70291.0,70275.0,0.00033231]
[1773244745347,0.198865,70291.0,70275.0,0.00033231]
[1773244745549,0.198865,70291.0,70274.0,0.07115006]
[1773244745550,0.198865,70291.0,70276.0,0.00148]
[1773244745777,0.19829198,70291.0,70276.0,0.00148]
[1773244745984,0.19829198,70291.0,70276.0,0.00090698]
[1773244746185,0.20001203,70290.0,70276.0,0.00090698]
[1773244746384,0.20149203,70290.0,70276.0,0.00033427]
[1773244746701,0.07261405,70290.0,70276.0,0.0726272]
[1773244746900,0.00090791,70291.0,70277.0,0.21750142]
[1773244747076,0.00090791,70291.0,70277.0,0.21692933]
[1773244747272,0.00033611,70291.0,70276.0,0.00148]
[1773244747478,0.20034814,70291.0,70276.0,0.0009082]
[1773244747684,0.20125665,70291.0,70276.0,0.00033671]
[1773244747924,0.20068558,70291.0,70276.0,0.00133671]
[1773244748123,0.20068558,70291.0,70277.0,0.00148]
[1773244748299,0.20011491,70291.0,70277.0,0.00090933]
[1773244748511,0.19954466,70291.0,70277.0,0.00090933]
[1773244748694,0.07113387,70290.0,70276.0,0.00019539]
[1773244748896,0.19944209,70289.0,70276.0,0.00019539]
[1773244749095,0.19944209,70289.0,70269.0,0.07115429]
[1773244749096,0.19944209,70289.0,70272.0,0.00148]
[1773244749298,0.1988725,70289.0,70272.0,0.00148]
[1773244749502,0.1988725,70289.0,70266.0,0.28865879]
[1773244749704,0.19830324,70289.0,70267.0,0.00091074]
[1773244749905,0.19773436,70289.0,70267.0,0.00091074]
[1773244750105,0.19773436,70289.0,70267.0,0.00034186]
[1773244750340,0.19716584,70289.0,70266.0,0.21750142]
[1773244750570,0.19716584,70289.0,70266.0,0.2169329]
[1773244750783,0.07113589,70288.0,70267.0,0.07206874]
[1773244750988,0.19944432,70287.0,70267.0,0.07150103]
[1773244751142,0.19944432,70287.0,70268.0,0.00148]
[1773244751327,0.19887699,70287.0,70268.0,0.00091267]
[1773244751660,0.19831003,70287.0,70268.0,0.00034571]
[1773244751891,0.19774345,70287.0,70268.0,0.00034571]
[1773244752081,0.19774345,70287.0,70269.0,0.00148]
[1773244752246,0.19717723,70287.0,70269.0,0.00148]
[1773244752432,0.19717723,70287.0,70269.0,0.00091378]
[1773244752633,0.19661138,70287.0,70269.0,0.00034793]
[1773244752983,0.20001203,70285.0,70269.0,0.00034793]
[1773244753222,0.20001203,70283.0,70270.0,0.00148]
[1773244753392,0.19944695,70283.0,70270.0,0.00091492]
[1773244753593,0.19888222,70283.0,70270.0,0.00035019]
[1773244753768,0.19831778,70283.0,70270.0,0.00035019]
[1773244753969,0.19831778,70283.0,70264.0,0.0002]
[1773244754167,0.19831778,70283.0,70262.0,0.00168]
[1773244754168,0.19775365,70283.0,70262.0,0.00131587]
[1773244754420,0.19718988,70283.0,70262.0,0.0007521]
[1773244754637,0.19662646,70283.0,70263.0,0.00148]
[1773244754825,0.19662646,70283.0,70263.0,0.00100738]
[1773244755027,0.20001203,70281.0,70263.0,9.08e-05]
[1773244755327,0.19944927,70281.0,70264.0,0.00091693]
[1773244755530,0.19888681,70281.0,70264.0,0.00035417]
[1773244755737,0.19888681,70281.0,70259.0,0.00148]
[1773244755965,0.1983247,70281.0,70259.0,0.00148]
[1773244756165,0.1983247,70281.0,70259.0,0.00091789]
[1773244756293,0.19776296,70281.0,70259.0,0.00091789]
[1773244756497,0.19776296,70281.0,70259.0,0.00035615]
[1773244756716,0.19776296,70281.0,70255.0,0.0002]
[1773244756717,0.19720158,70281.0,70257.0,0.00148]
[1773244756932,0.19664058,70281.0,70257.0,0.000919]
[1773244757126,0.19945142,70279.0,70257.0,0.000919]
[1773244757321,0.20001203,70277.0,70257.0,0.00035839]
[1773244757526,0.19945175,70277.0,70256.0,0.21898142]
[1773244757687,0.19889179,70277.0,70256.0,0.21898142]
[1773244757890,0.19889179,70277.0,70256.0,0.00092004]
[1773244758137,0.19833222,70277.0,70256.0,0.00036047]
[1773244758361,0.197773,70277.0,70256.0,0.00148]
[1773244758522,0.19721414,70277.0,70256.0,0.00148]
[1773244758723,0.19721414,70277.0,70256.0,0.00092114]
[1773244758925,0.19665564,70277.0,70253.0,0.00028125]
[1773244759198,0.19945383,70275.0,70253.0,0.00176125]
[1773244759406,0.07114804,70276.0,70243.0,0.0002]
[1773244759407,0.20001203,70269.0,70243.0,0.0002]
[1773244759591,0.21586166,70258.0,70234.0,0.00012109]
[1773244759795,0.20093481,70257.0,70234.0,0.00012109]
[1773244759957,0.20093481,70257.0,70229.0,0.21193912]
[1773244759958,0.20093481,70257.0,70229.0,0.28269833]
[1773244760154,0.20037802,70257.0,70230.0,0.20729424]
[1773244760328,0.19982161,70257.0,70230.0,0.20729424]
[1773244760527,0.00148,70256.0,70230.0,0.20673783]
[1773244760750,0.21660682,70255.0,70230.0,0.20618179]
[1773244760951,0.21620676,70255.0,70230.0,0.20618179]
[1773244761172,0.21660682,70253.0,70231.0,0.27848898]
[1773244761373,0.21605148,70253.0,70232.0,0.20785103]
[1773244761569,0.21549647,70253.0,70232.0,0.20785103]
[1773244761771,0.21494176,70253.0,70232.0,0.20729602]
[1773244761979,0.21494176,70253.0,70231.0,0.0695279]
[1773244762174,0.21438736,70253.0,70231.0,0.0695279]
[1773244762379,0.21438736,70253.0,70231.0,0.0689735]
[1773244762620,0.21383326,70253.0,70231.0,0.0684194]
[1773244762925,0.21327947,70253.0,70230.0,0.07064078]
[1773244763128,0.07061887,70252.0,70230.0,0.07064078]
[1773244763368,0.21660682,70251.0,70230.0,0.27793833]
[1773244763510,0.21660682,70249.0,70230.0,0.27793833]
[1773244763722,0.21660682,70249.0,70230.0,0.27738519]
[1773244763918,0.21605399,70249.0,70230.0,0.27738519]
[1773244764121,0.21605399,70249.0,70230.0,0.20785103]
[1773244764472,0.21550147,70249.0,70228.0,0.0002]
[1773244764676,0.21494929,70249.0,70220.0,0.20789885]
[1773244764903,0.21494929,70249.0,70220.0,4.782e-05]
[1773244764904,0.21439754,70249.0,70220.0,4.782e-05]
[1773244765103,0.21439754,70249.0,70220.0,0.20785103]
[1773244765262,0.0726564,70248.0,70222.0,0.20729975]
[1773244765458,0.21605597,70247.0,70222.0,0.2067489]
[1773244765669,0.00092954,70246.0,70222.0,0.2067489]
[1773244765873,0.00148,70247.0,70222.0,0.20619844]
[1773244766188,0.21753669,70247.0,70222.0,0.20564831]
[1773244766385,0.21698692,70247.0,70222.0,0.20564831]
[1773244766588,0.0711764,70249.0,70222.0,0.20564831]
[1773244766589,0.0711764,70249.0,70222.0,0.20509854]
[1773244766918,0.00093122,70248.0,70231.0,0.20785103]
[1773244767251,0.00093122,70248.0,70231.0,0.20878225]
[1773244767252,0.07117843,70246.0,70231.0,0.20878225]
[1773244767507,0.21660682,70245.0,70231.0,0.20823381]
[1773244767820,0.07116198,70263.0,70233.0,0.20730287]
[1773244767995,0.21605897,70255.0,70233.0,0.20730287]
[1773244768310,0.21605897,70255.0,70233.0,0.20675502]
[1773244768516,0.21551145,70255.0,70231.0,0.00093248]
[1773244768660,0.21496427,70255.0,70231.0,0.00093248]
[1773244768877,0.21496427,70255.0,70231.0,0.0715787]
[1773244769079,0.21441744,70255.0,70232.0,0.20785103]
[1773244769386,0.2160603,70253.0,70231.0,0.27942993]
[1773244769612,0.2160603,70253.0,70232.0,0.00148]
[1773244769828,0.21551408,70253.0,70232.0,0.00148]
[1773244770033,0.21551408,70253.0,70232.0,0.00093378]
[1773244770232,0.21496818,70253.0,70229.0,0.07119558]
[1773244770411,0.21496818,70253.0,70224.0,0.07120068]
[1773244770607,0.21442263,70253.0,70225.0,0.20785103]
[1773244770825,0.21387746,70253.0,70225.0,0.20878586]
[1773244771017,0.21333269,70253.0,70225.0,0.20878586]
[1773244771218,0.21660682,70251.0,70225.0,0.20824109]
[1773244771434,0.07063,70250.0,70233.0,0.00014238]
[1773244771638,0.21660682,70249.0,70232.0,0.20744904]
[1773244771819,0.21606278,70249.0,70232.0,0.207105]
[1773244772166,0.21551899,70249.0,70232.0,0.20656121]
[1773244772330,0.00148,70248.0,70232.0,0.20749769]
[1773244772732,0.0009368,70248.0,70232.0,0.20695449]
[1773244773054,0.00039391,70248.0,70232.0,0.2064116]
[1773244773234,0.00148,70247.0,70232.0,0.2064116]
[1773244773406,0.00148,70247.0,70232.0,0.20586901]
[1773244773609,0.07117843,70246.0,70232.0,0.20586901]
[1773244773825,0.07117843,70246.0,70232.0,0.20532671]
[1773244774055,0.07063637,70246.0,70232.0,0.20478465]
[1773244774257,0.07063637,70246.0,70232.0,0.00148]
[1773244774258,0.216065,70245.0,70232.0,0.00148]
[1773244774457,0.216065,70245.0,70233.0,0.00148]
[1773244774759,0.21552341,70245.0,70233.0,0.00148]
[1773244775057,0.07063637,70246.0,70233.0,0.00093841]
[1773244775287,0.07063637,70246.0,70234.0,0.20730966]
[1773244775566,0.07117221,70253.0,70234.0,0.20730966]
[1773244775567,0.07116222,70262.0,70235.0,0.07118957]
[1773244775806,0.07062328,70261.0,70236.0,0.20785103]
[1773244775992,0.07062328,70261.0,70236.0,0.20731019]
[1773244776199,0.21606629,70260.0,70236.0,0.20731019]
[1773244776371,0.21552609,70260.0,70236.0,0.20676966]
[1773244776578,0.07264222,70262.0,70236.0,0.19622946]
[1773244776893,0.07210233,70262.0,70236.0,0.19568957]
[1773244777106,0.21660682,70260.0,70236.0,0.19568957]
[1773244777325,0.21660682,70260.0,70237.0,0.00148]
[1773244777511,0.21660682,70260.0,70236.0,0.19515001]
[1773244777512,0.21606762,70260.0,70238.0,0.00148]
[1773244777710,0.21660682,70258.0,70238.0,0.0009408]
[1773244777913,0.21606797,70258.0,70237.0,0.20933103]
[1773244778117,0.21606797,70258.0,70237.0,0.19879218]
[1773244778324,0.21552952,70258.0,70237.0,0.19825373]
[1773244778494,0.21499146,70258.0,70237.0,0.19825373]
[1773244778670,0.21499146,70258.0,70237.0,0.19771567]
[1773244778870,0.2144538,70258.0,70237.0,0.19771567]
[1773244779120,0.2144538,70258.0,70237.0,0.19717801]
[1773244779292,0.21660682,70258.0,70237.0,0.19717801]
[1773244779498,0.21660682,70258.0,70237.0,0.19664073]
[1773244779696,0.07116073,70264.0,70239.0,0.20785103]
[1773244779878,0.07116073,70264.0,70239.0,0.2073141]
[1773244780080,0.00094342,70263.0,70239.0,0.20677752]
[1773244780424,0.00094376,70263.0,70239.0,0.20624128]
[1773244780629,0.00040785,70263.0,70239.0,0.20624128]
[1773244780822,0.00040785,70263.0,70239.0,0.20570537]
[1773244781036,0.00148,70263.0,70239.0,0.2051698]
[1773244781255,0.00094477,70263.0,70239.0,0.2051698]
[1773244781389,0.20502038,70262.0,70239.0,0.20463457]
[1773244781592,0.20448549,70262.0,70239.0,0.20409968]
[1773244781999,0.07116263,70262.0,70241.0,0.20343588]
[1773244782390,0.07062833,70262.0,70241.0,0.20236699]
[1773244782756,0.0721062,70263.0,70241.0,0.20183298]
[1773244782954,0.07157248,70263.0,70241.0,0.20129926]
[1773244783342,0.07103905,70263.0,70241.0,0.20076583]
[1773244783629,0.07050592,70263.0,70241.0,0.2002327]
[1773244783786,0.06997308,70263.0,70241.0,0.2002327]
[1773244783987,0.20502038,70262.0,70242.0,0.07118248]
[1773244784187,0.20448784,70262.0,70243.0,0.00094746]
[1773244784452,0.20395557,70262.0,70244.0,0.00148]
[1773244784657,0.20395557,70262.0,70244.0,0.00094773]
[1773244784791,0.20342356,70262.0,70242.0,0.06118248]
[1773244785008,0.20342356,70262.0,70245.0,0.00094799]
[1773244785354,0.20289181,70262.0,70246.0,0.00148]
[1773244785586,0.20236032,70262.0,70242.0,0.04307872]
[1773244785881,0.20182907,70262.0,70242.0,0.04307872]
[1773244786034,0.20502038,70260.0,70243.0,0.00148]
[1773244786237,0.20502038,70260.0,70243.0,0.00094904]
[1773244786462,0.20502038,70260.0,70241.0,0.27561836]
[1773244786463,0.20448971,70260.0,70244.0,0.00148]
[1773244786918,0.20448971,70260.0,70240.0,0.00148]
[1773244786919,0.20395933,70260.0,70240.0,0.00148]
[1773244787067,0.20342933,70260.0,70237.0,0.00148]
[1773244787278,0.20342933,70260.0,70237.0,0.00095]
[1773244787476,0.20289968,70260.0,70234.0,0.07118958]
[1773244787677,0.20289968,70260.0,70235.0,0.00095035]
[1773244787988,0.07116525,70259.0,70237.0,0.07118755]
[1773244788196,0.07116204,70263.0,70238.0,0.20343588]
[1773244788355,0.07264081,70264.0,70238.0,0.20290695]
[1773244788552,0.07211226,70264.0,70238.0,0.2023784]
[1773244788758,0.07158414,70264.0,70238.0,0.1923784]
[1773244788994,0.07158414,70264.0,70238.0,0.19185028]
[1773244789197,0.20502038,70263.0,70238.0,0.19132258]
[1773244789363,0.20449311,70263.0,70238.0,0.19132258]
[1773244789557,0.20449311,70263.0,70238.0,0.19079531]
[1773244789770,0.20396623,70263.0,70239.0,0.00148]
[1773244789987,0.07116222,70262.0,70241.0,0.07118349]
[1773244790194,0.20394519,70261.0,70240.0,0.27313122]
[1773244790391,0.20341904,70261.0,70240.0,0.27313122]
[1773244790603,0.20289322,70261.0,70241.0,0.00095418]
[1773244790805,0.20341969,70259.0,70241.0,0.00095418]
[1773244791015,0.20394519,70257.0,70241.0,0.00042868]
[1773244791219,0.20342,70257.0,70237.0,0.00148]
[1773244791419,0.20289516,70257.0,70237.0,0.00148]
[1773244791613,0.20289516,70257.0,70237.0,0.00095516]
[1773244791813,0.20237066,70257.0,70235.0,0.2019474]
[1773244792019,0.20237066,70257.0,70238.0,0.0009555]
[1773244792216,0.20394519,70255.0,70238.0,0.00043131]
[1773244792420,0.20342133,70255.0,70235.0,0.27409255]
[1773244792619,0.20289778,70255.0,70236.0,0.00148]
[1773244792842,0.20289778,70255.0,70237.0,0.001]
[1773244793008,0.20237456,70255.0,70237.0,0.1929474]
[1773244793210,0.20237456,70255.0,70238.0,0.00148]
[1773244793410,0.20185165,70255.0,70238.0,0.00095709]
[1773244793609,0.20132903,70255.0,70238.0,0.00095709]
[1773244793923,0.20080672,70255.0,70238.0,0.20185956]
[1773244794124,0.00148,70259.0,70242.0,0.2019474]
[1773244794349,0.07116728,70258.0,70242.0,0.20142544]
[1773244794498,0.27459082,70258.0,70242.0,0.20090379]
[1773244794897,0.27406943,70258.0,70242.0,0.2003824]
[1773244795105,0.20394519,70257.0,70242.0,0.19986128]
[1773244795324,0.20342434,70257.0,70239.0,0.00148]
[1773244795550,0.20342434,70257.0,70239.0,0.00095915]
[1773244795779,0.20290377,70257.0,70239.0,0.00043858]
[1773244795904,0.20238351,70257.0,70239.0,0.00043858]
[1773244796144,0.20238351,70257.0,70240.0,0.00148]
[1773244796351,0.07116829,70256.0,70240.0,0.00096003]
[1773244796596,0.20342551,70255.0,70240.0,0.00096003]
[1773244796755,0.20342551,70255.0,70240.0,0.00044035]
[1773244796957,0.20290608,70255.0,70241.0,0.00148]
[1773244797278,0.20238691,70255.0,70241.0,0.00096083]
[1773244797478,0.201868,70255.0,70241.0,0.00096083]
[1773244797685,0.201868,70255.0,70241.0,0.00044192]
[1773244798000,0.20134934,70255.0,70240.0,0.00148]
[1773244798307,0.07117032,70254.0,70230.0,0.07087567]
[1773244798552,0.20342714,70253.0,70236.0,0.2019474]
[1773244798759,0.07116976,70255.0,70236.0,0.20142935]
[1773244798978,0.20394519,70258.0,70238.0,0.20142965]
[1773244799183,0.20394519,70258.0,70237.0,0.00148]
[1773244799184,0.07086454,70263.0,70240.0,0.2019474]
[1773244799386,0.07263777,70267.0,70242.0,0.2019474]
[1773244799584,0.07212066,70267.0,70242.0,0.20143029]
[1773244799821,0.07160396,70267.0,70242.0,0.20091359]
[1773244800059,0.07108767,70267.0,70242.0,0.20091359]
[1773244800856,0.07108767,70267.0,70242.0,0.2003973]
[1773244801027,0.00022001,70268.0,70242.0,0.2003973]
[1773244801662,0.00022001,70263.0,70242.0,0.2003973]
[1773244801858,0.00022001,70271.0,70242.0,0.19988141]
[1773244802059,0.20394519,70270.0,70242.0,0.19988141]
[1773244802693,0.20394519,70268.0,70243.0,0.00148]
[1773244802972,0.20394519,70268.0,70245.0,0.07117944]
[1773244802973,0.20394519,70266.0,70245.0,0.07117944]
[1773244803196,0.20394519,70266.0,70246.0,0.00144]
[1773244803477,0.20394519,70266.0,70242.0,0.07218165]
[1773244803677,0.20394519,70266.0,70242.0,0.001]
[1773244803877,0.20342976,70266.0,70242.0,0.00048457]
[1773244804060,0.2029147,70266.0,70242.0,0.00048457]
[1773244804373,0.2029147,70266.0,70241.0,0.07118338]
[1773244804374,0.20240001,70266.0,70244.0,0.2019474]
[1773244804577,0.20394519,70264.0,70244.0,0.20143271]
[1773244804756,0.20343086,70264.0,70244.0,0.20143271]
[1773244804926,0.0711607,70264.0,70246.0,0.2019474]
[1773244805135,0.00148,70265.0,70246.0,0.2019474]
[1773244805332,0.07137315,70271.0,70246.0,0.20143338]
[1773244805580,0.20365147,70271.0,70246.0,0.20143338]
[1773244805777,0.00148,70273.0,70246.0,0.20143338]
[1773244805778,0.07211783,70273.0,70246.0,0.20091965]
[1773244805933,0.20394519,70272.0,70247.0,0.00144]
[1773244806154,0.20394519,70265.0,70247.0,0.00092698]
[1773244806366,0.20343246,70265.0,70247.0,0.00092698]
[1773244806564,0.20343246,70265.0,70247.0,0.20236165]
[1773244806762,0.20292001,70265.0,70247.0,0.20236165]
[1773244807015,0.20292001,70265.0,70248.0,0.27261135]
[1773244807265,0.20394519,70274.0,70249.0,0.2019474]
[1773244807468,0.20394519,70274.0,70249.0,0.2014352]
[1773244807714,0.20310148,70274.0,70249.0,0.2009233]
[1773244807889,0.20258991,70274.0,70249.0,0.20041173]
[1773244808235,0.20207867,70274.0,70249.0,0.20041173]
[1773244808435,0.20207867,70274.0,70249.0,0.19990049]
[1773244808642,0.20491428,70273.0,70249.0,0.19938958]
[1773244809041,0.20394519,70272.0,70251.0,0.2019474]
[1773244809414,0.20394519,70272.0,70251.0,0.20143685]
[1773244809731,0.20343496,70272.0,70251.0,0.20092662]
[1773244809944,0.20292505,70272.0,70247.0,0.001]
[1773244810165,0.20394519,70269.0,70247.0,0.00049009]
[1773244810363,0.20343571,70269.0,70240.0,0.00113052]
[1773244810516,0.20394519,70259.0,70229.0,0.00144]
[1773244810706,0.20394519,70257.0,70228.0,0.00144]
[1773244810988,0.07116829,70256.0,70226.0,0.0711987]
[1773244811112,0.20394519,70255.0,70225.0,0.07128998]
[1773244811313,0.07116829,70256.0,70224.0,0.0002]
[1773244811314,0.00148,70254.0,70224.0,0.0002]
[1773244811525,0.00148,70254.0,70222.0,0.2019474]
[1773244811526,0.20343742,70253.0,70223.0,0.07089364]
[1773244811732,0.20293008,70253.0,70222.0,0.07120243]
[1773244811959,0.20293008,70253.0,70224.0,0.2019474]
[1773244812159,0.07116829,70256.0,70224.0,0.2019474]
[1773244812160,0.20394519,70251.0,70224.0,0.2014405]
[1773244812417,0.20343872,70251.0,70223.0,0.00144]
[1773244812629,0.20343872,70251.0,70221.0,0.0002]
[1773244812867,0.00148,70252.0,70217.0,0.00144]
[1773244812868,0.20394519,70249.0,70217.0,0.00144]